bitfinex/quotes_SOLUSD_20240716
["timestamp","ask_amount","ask_price","bid_price","bid_amount"]
[1721169767786,15.02,160.05,160.03,0.17]
[1721169768287,15.02,160.04,160.03,0.17]
[1721169768894,6.2491,160.03,159.98,6.2504]
[1721169769186,15.02,160.02,159.96,15.02]
[1721169769502,15.02,160.02,159.99,6.2501]
[1721169769682,15.02,160.01,159.99,6.2501]
[1721169770262,15.02,160.01,160.0,0.17]
[1721169770469,15.02,160.01,159.98,6.2506]
[1721169770765,15.02,160.0,159.99,6.2503]
[1721169771797,15.02,160.01,159.99,6.4203]
[1721169772480,15.02,160.0,159.99,6.4203]
[1721169773301,15.02,160.01,159.99,6.4203]
[1721169774305,15.02,160.0,159.99,0.17]
[1721169775411,15.02,160.0,159.99,6.4203]
[1721169776977,15.02,160.01,160.0,6.2499]
[1721169777516,15.1643,160.02,160.0,6.2499]
[1721169777701,15.02,160.04,160.01,0.17]
[1721169778208,22.6814,160.06,160.02,6.2489]
[1721169778503,15.02,160.04,160.01,6.4195]
[1721169778681,15.02,160.03,160.01,6.4195]
[1721169779029,15.02,160.04,160.01,6.4195]
[1721169779977,35.02,160.05,160.01,6.4195]
[1721169780178,35.02,160.05,160.02,6.2491]
[1721169780600,35.02,160.05,160.01,6.4194]
[1721169781382,15.02,160.04,160.01,6.4194]
[1721169781703,20.0,160.05,160.01,0.17]
[1721169781904,20.0,160.05,159.99,15.19]
[1721169781905,16.4338,160.06,160.0,15.36]
[1721169782213,15.02,160.05,160.01,1.24969748]
[1721169782406,15.02,160.05,160.04,6.2484]
[1721169782697,15.02,160.05,160.04,0.17]
[1721169783682,16.4338,160.06,160.04,6.4184]
[1721169783914,31.4538,160.06,160.05,0.17]
[1721169784125,15.02,160.06,160.05,0.17]
[1721169784916,16.0536,160.1,160.05,0.17]
[1721169785103,22.2978,160.15,160.1,6.2457]
[1721169785319,15.02,160.13,160.1,6.2457]
[1721169785521,15.02,160.13,160.09,6.4163]
[1721169785824,15.02,160.12,160.09,6.4163]
[1721169787421,15.02,160.13,160.1,6.4159]
[1721169787634,15.02,160.13,160.11,6.4157]
[1721169788127,15.02,160.13,160.11,0.17]
[1721169788293,15.02,160.13,160.1,6.4159]
[1721169790804,15.02,160.12,160.1,6.4159]
[1721169792628,15.02,160.12,160.1,0.17]
[1721169793515,15.02,160.11,160.02,6.0394]
[1721169793707,18.79,160.13,160.02,6.0394]
[1721169793708,21.2665,160.09,160.02,6.0394]
[1721169793904,15.02,160.08,160.05,6.2477]
[1721169794127,15.02,160.08,160.02,21.0594]
[1721169794298,15.02,160.06,160.02,6.2491]
[1721169794501,15.02,160.05,160.02,6.2491]
[1721169794705,6.2476,160.07,160.02,6.2491]
[1721169794706,15.02,160.04,160.02,6.2491]
[1721169795011,6.2469,160.08,160.0,16.26978145]
[1721169795209,15.02,160.05,160.01,1.24973916]
[1721169796037,22.7137,160.1,160.02,15.36]
[1721169796211,20.0,160.09,160.06,6.2476]
[1721169796921,20.0,160.09,160.07,0.17]
[1721169797118,20.0,160.09,160.07,6.2472]
[1721169797312,16.4998,160.1,160.08,6.5865]
[1721169797503,16.4998,160.1,160.09,0.17]
[1721169798316,16.4998,160.1,160.08,0.34]
[1721169799610,16.4998,160.1,160.08,6.5867]
[1721169799812,6.2454,160.12,160.08,6.5867]
[1721169800019,26.2458,160.11,160.08,0.34]
[1721169800421,26.2458,160.11,160.08,0.17]
[1721169801235,26.2458,160.11,160.0,46.3019]
[1721169801236,6.2464,160.09,160.05,6.2476]
[1721169801420,6.2464,160.09,160.06,0.17]
[1721169801740,20.0,160.11,160.06,0.17]
[1721169801741,6.2469,160.08,160.06,0.17]
[1721169802025,21.9749,160.08,160.05,0.17]
[1721169802210,21.9749,160.08,160.04,6.4183]
[1721169802211,21.9749,160.08,160.04,6.2484]
[1721169803428,21.9749,160.08,160.05,0.17]
[1721169804628,15.728,160.08,160.05,0.17]
[1721169804932,20.0,160.11,160.05,0.17]
[1721169805108,6.2461,160.1,160.06,6.2473]
[1721169805406,20.0,160.09,160.07,0.17]
[1721169806129,6.2458,160.11,160.07,6.4171]
[1721169806319,20.0,160.1,160.07,6.4171]
[1721169807429,20.0,160.1,160.08,6.2465]
[1721169807611,20.0,160.11,160.09,0.17]
[1721169808019,26.2457,160.11,160.09,0.17]
[1721169808336,26.2457,160.11,160.08,0.34]
[1721169808541,20.0,160.11,160.08,6.5868]
[1721169808731,21.8035,160.12,160.08,6.5868]
[1721169809934,6.2448,160.14,160.09,6.2463]
[1721169810138,6.2448,160.14,160.08,0.34]
[1721169810139,20.0,160.13,160.1,6.586]
[1721169810435,20.0,160.13,160.11,0.17]
[1721169810627,20.0,160.13,160.11,0.34]
[1721169812422,6.2445,160.14,160.11,0.34]
[1721169812618,49.8318,160.17,160.06,6.1875]
[1721169812936,49.8318,160.17,160.08,6.2466]
[1721169812937,6.2455,160.12,160.08,6.2466]
[1721169813142,6.2455,160.12,160.09,0.34]
[1721169813347,6.245,160.13,160.09,6.5864]
[1721169814039,6.2453,160.12,160.09,0.34]
[1721169814713,6.245,160.13,160.09,6.5864]
[1721169815334,6.2454,160.12,160.09,0.17]
[1721169815537,18.79,160.15,160.09,0.17]
[1721169815734,6.2457,160.11,160.09,0.17]
[1721169815935,6.2454,160.12,160.08,6.5868]
[1721169816128,50.03,160.16,160.08,0.34]
[1721169816334,6.2444,160.15,160.11,6.2455]
[1721169816541,26.2445,160.14,160.1,6.4159]
[1721169816840,6.2449,160.13,160.1,0.17]
[1721169818133,6.2446,160.14,160.1,6.416]
[1721169818327,15.01,160.11,160.1,0.17]
[1721169819348,15.01,160.11,160.1,6.416]
[1721169819640,80.04,160.16,160.1,0.17]
[1721169819839,80.04,160.16,160.11,6.2454]
[1721169819840,15.01,160.12,160.11,6.2454]
[1721169820021,15.01,160.12,160.11,6.5854]
[1721169820547,15.01,160.12,160.11,0.17]
[1721169821642,15.01,160.12,160.1,0.17]
[1721169821837,15.01,160.11,160.1,0.17]
[1721169822045,15.01,160.11,160.08,6.2468]
[1721169822242,15.01,160.1,160.09,0.17]
[1721169823625,15.01,160.1,160.09,6.4164]
[1721169823863,15.01,160.1,160.09,0.17]
[1721169824158,15.01,160.1,160.08,0.17]
[1721169824831,15.01,160.09,160.08,6.4168]
[1721169826852,25.035,160.13,160.08,6.4168]
[1721169827157,15.01,160.1,160.09,6.2464]
[1721169829553,15.01,160.08,160.07,6.417]
[1721169831663,25.035,160.13,160.07,0.17]
[1721169831872,38.79,160.12,160.09,6.2464]
[1721169832165,15.01,160.1,160.08,6.2467]
[1721169832331,15.01,160.09,160.08,6.2467]
[1721169833247,15.01,160.09,160.07,6.4171]
[1721169833451,15.01,160.08,160.07,6.4171]
[1721169833759,15.01,160.08,160.03,1.2494639]
[1721169833942,15.01,160.05,160.04,6.2484]
[1721169834331,15.01,160.06,160.04,6.2484]
[1721169835274,15.01,160.05,160.02,6.2488]
[1721169835450,15.01,160.03,160.02,6.2492]
[1721169837766,15.01,160.03,160.02,6.4192]
[1721169840854,15.01,160.03,159.94,16.6302]
[1721169841054,15.01,160.01,160.0,6.2496]
[1721169842366,15.01,160.01,160.0,6.4196]
[1721169843474,15.01,160.01,159.98,6.2504]
[1721169843775,15.01,159.99,159.98,6.2504]
[1721169844139,6.2484,160.04,159.95,1.25015745]
[1721169844339,15.01,160.01,159.96,15.01]
[1721169844560,15.01,160.01,160.0,6.2496]
[1721169844844,15.01,160.01,160.0,0.17]
[1721169845040,15.01,160.01,160.0,6.42]
[1721169845675,15.01,160.01,160.0,0.17]
[1721169845860,15.01,160.01,159.96,1.25008201]
[1721169846069,15.01,160.01,159.99,6.2501]
[1721169846250,15.01,160.01,160.0,0.17]
[1721169850659,15.01,160.01,159.99,0.34]
[1721169850859,15.01,160.0,159.99,0.34]
[1721169851772,15.01,160.0,159.99,0.17]
[1721169851984,15.01,160.0,159.99,0.34]
[1721169852973,15.01,160.0,159.99,0.17]
[1721169853183,21.26,160.0,159.96,6.2515]
[1721169853352,15.01,159.97,159.92,15.01]
[1721169853569,15.01,159.98,159.92,15.01]
[1721169853965,15.01,159.98,159.96,6.2515]
[1721169854186,15.01,159.97,159.94,6.2522]
[1721169854351,15.01,159.96,159.95,6.2518]
[1721169854558,15.01,159.96,159.94,6.2523]
[1721169855547,15.01,159.96,159.91,15.01]
[1721169855753,15.01,159.94,159.92,0.34]
[1721169855974,15.01,159.95,159.93,6.2523]
[1721169856179,15.01,159.95,159.94,0.34]
[1721169856600,40.6878,160.0,159.95,6.2515]
[1721169856758,15.01,159.96,159.95,6.2515]
[1721169856958,15.01,159.96,159.95,6.4215]
[1721169857569,15.6476,160.0,159.96,15.6285]
[1721169857875,30.6576,160.0,159.97,0.34]
[1721169858573,15.6476,160.0,159.98,6.2505]
[1721169858782,30.6576,160.0,159.99,0.17]
[1721169860661,30.6576,160.0,159.98,0.17]
[1721169860959,15.01,160.0,159.98,6.4207]
[1721169862786,15.01,160.0,159.98,0.17]
[1721169865085,16.1253,160.04,159.98,0.17]
[1721169865300,16.1253,160.04,160.0,6.2497]
[1721169865583,15.01,160.02,160.01,0.34]
[1721169866968,21.2592,160.02,160.01,0.34]
[1721169867183,15.01,160.02,160.01,0.34]
[1721169867390,15.01,160.02,160.01,0.17]
[1721169868473,15.01,160.02,160.0,6.5899]
[1721169874997,15.01,160.03,160.0,6.5899]
[1721169876179,15.01,160.01,159.92,6.0198]
[1721169876377,21.2602,160.0,159.94,15.01]
[1721169876580,15.01,159.99,159.94,15.01]
[1721169876774,15.01,159.99,159.96,6.2512]
[1721169877292,15.01,159.99,159.97,6.2509]
[1721169877873,15.01,159.99,159.98,6.4207]
[1721169878286,15.01,160.01,159.99,6.2503]
[1721169878978,15.01,160.0,159.99,6.2503]
[1721169879174,15.01,160.0,159.99,6.4203]
[1721169879570,15.01,160.0,159.99,0.17]
[1721169882997,15.01,160.0,159.99,6.4203]
[1721169883701,15.01,160.01,159.99,6.4203]
[1721169883877,15.01,160.01,160.0,0.17]
[1721169886202,15.01,160.01,159.99,0.17]
[1721169887313,15.01,160.0,159.99,0.17]
[1721169888012,15.01,160.0,159.98,0.34]
[1721169891007,15.01,160.0,159.98,6.5907]
[1721169893005,15.01,160.0,159.98,6.4207]
[1721169893304,15.01,160.0,159.97,15.6273]
[1721169893305,15.01,159.99,159.96,6.2515]
[1721169893611,15.01,159.97,159.95,6.2518]
[1721169894609,15.01,159.97,159.96,0.17]
[1721169895109,36.8151,159.97,159.94,15.6303]
[1721169895287,15.01,159.95,159.94,15.6303]
[1721169895813,15.01,159.95,159.94,21.8826]
[1721169896119,15.01,159.96,159.95,6.2518]
[1721169896605,15.01,159.96,159.95,6.4218]
[1721169897806,21.5375,160.0,159.96,6.2513]
[1721169897985,20.0,159.99,159.97,0.17]
[1721169898311,15.01,159.98,159.97,0.17]
[1721169898793,15.01,159.98,159.96,0.17]
[1721169898997,15.01,159.97,159.96,0.17]
[1721169899997,15.01,159.97,159.96,6.4215]
[1721169901109,15.2875,160.0,159.96,0.17]
[1721169901289,15.01,160.01,160.0,6.2499]
[1721169901493,15.01,160.01,159.99,6.2502]
[1721169901801,15.01,160.01,159.98,22.047]
[1721169902005,15.01,160.01,159.99,6.4201]
[1721169902193,15.01,160.01,160.0,6.25]
[1721169902397,6.2488,160.03,160.0,0.17]
[1721169902612,15.01,160.01,159.99,0.17]
[1721169903023,34.1182,160.05,159.84,10.0]
[1721169903024,15.01,160.0,159.84,10.0]
[1721169903200,15.01,159.96,159.89,50.0]
[1721169903401,15.01,159.96,159.94,6.252]
[1721169903712,15.7144,159.99,159.92,16.26042256]
[1721169903894,15.7144,159.99,159.96,6.2513]
[1721169903895,30.7244,159.99,159.96,6.2513]
[1721169904090,16.0858,160.04,159.95,15.01]
[1721169904308,15.01,160.0,159.95,15.01]
[1721169904507,15.01,160.0,159.96,0.34]
[1721169904810,15.01,160.0,159.98,6.2505]
[1721169905014,15.01,160.01,159.99,0.17]
[1721169906702,26.2489,160.03,159.99,6.4203]
[1721169906903,15.01,160.01,159.99,6.4203]
[1721169907110,16.0858,160.04,159.99,0.17]
[1721169907410,15.01,160.03,160.01,6.2493]
[1721169907601,16.0858,160.04,160.02,0.17]
[1721169907800,15.01,160.03,160.02,0.17]
[1721169908299,16.0858,160.04,160.02,0.17]
[1721169908523,15.01,160.04,160.02,0.17]
[1721169908810,15.01,160.05,160.02,0.17]
[1721169909022,15.01,160.05,160.03,6.2488]
[1721169909206,6.2473,160.07,160.03,6.2488]
[1721169909409,15.01,160.05,160.03,6.2488]
[1721169909607,15.01,160.05,160.02,6.249]
[1721169909915,6.2473,160.07,160.02,6.249]
[1721169909916,15.01,160.04,160.03,0.17]
[1721169910416,15.01,160.05,160.03,6.4187]
[1721169910715,15.01,160.05,160.04,6.2484]
[1721169910924,15.01,160.07,160.05,6.2478]
[1721169911217,15.01,160.07,160.06,0.17]
[1721169911902,15.4753,160.08,160.06,6.4176]
[1721169912107,30.4853,160.08,160.06,6.4176]
[1721169912497,30.4853,160.08,160.06,0.17]
[1721169912695,15.01,160.07,160.05,0.17]
[1721169912891,15.01,160.06,160.05,0.17]
[1721169913324,15.01,160.06,160.0,15.01]
[1721169913618,15.4753,160.08,160.03,6.2487]
[1721169913619,15.01,160.04,160.03,6.2487]
[1721169913817,21.7222,160.08,160.04,6.2483]
[1721169914011,15.01,160.05,160.04,6.2483]
[1721169914323,15.01,160.05,160.01,1.24969154]
[1721169914523,15.01,160.05,160.02,1.24968314]
[1721169914727,15.4753,160.08,160.06,6.2475]
[1721169915032,30.4853,160.08,160.07,6.2472]
[1721169915617,24.9257,160.13,160.07,0.17]
[1721169915929,31.4108,160.11,160.09,6.2461]
[1721169916310,16.4008,160.11,160.09,6.2461]
[1721169916511,31.4108,160.11,160.1,0.17]
[1721169917220,18.79,160.15,160.1,0.17]
[1721169917221,16.27,160.15,160.1,0.17]
[1721169917726,15.01,160.14,160.12,6.2453]
[1721169918121,15.01,160.14,160.11,6.2456]
[1721169918328,15.01,160.14,160.12,0.17]
[1721169919135,15.01,160.16,160.14,6.2442]
[1721169919425,15.01,160.16,160.13,6.2448]
[1721169919625,15.01,160.15,160.14,0.17]
[1721169921728,15.01,160.16,160.14,0.17]
[1721169922616,15.01,160.16,160.14,6.4144]
[1721169922818,16.5528,160.19,160.14,0.17]
[1721169923038,15.01,160.17,160.13,1.58874994]
[1721169923247,15.01,160.17,160.16,6.2436]
[1721169923422,15.01,160.17,160.16,6.4136]
[1721169923830,16.5528,160.19,160.16,6.4136]
[1721169924037,15.01,160.18,160.17,0.17]
[1721169924647,31.5628,160.19,160.17,0.17]
[1721169925129,31.5628,160.19,160.18,6.2429]
[1721169925329,15.01,160.2,160.18,6.4129]
[1721169925532,15.01,160.2,160.17,6.4132]
[1721169925851,15.01,160.2,160.17,6.4133]
[1721169926017,15.01,160.19,160.17,6.4133]
[1721169926219,15.01,160.2,160.17,6.4133]
[1721169926440,21.2522,160.2,160.17,0.17]
[1721169926830,15.01,160.19,160.17,0.17]
[1721169930640,34.5533,160.23,160.17,0.17]
[1721169930641,15.01,160.2,160.18,6.2428]
[1721169930945,15.01,160.21,160.19,6.4125]
[1721169931245,15.01,160.21,160.19,0.17]
[1721169931816,15.01,160.2,160.19,0.17]
[1721169932427,15.01,160.21,160.19,0.17]
[1721169932621,15.01,160.2,160.19,0.17]
[1721169933016,15.01,160.2,160.19,6.4125]
[1721169933731,15.01,160.22,160.2,6.2421]
[1721169934041,15.01,160.22,160.21,0.17]
[1721169934848,15.01,160.22,160.2,0.17]
[1721169936742,15.01,160.22,160.2,6.4121]
[1721169936947,15.7633,160.23,160.21,6.2417]
[1721169937143,15.7633,160.23,160.22,6.4114]
[1721169937350,6.3606,160.29,160.23,6.241]
[1721169937351,22.1712,160.27,160.23,6.241]
[1721169937554,22.1712,160.27,160.24,0.17]
[1721169937725,15.01,160.25,160.24,0.17]
[1721169938144,15.01,160.25,160.23,0.17]
[1721169938547,15.01,160.24,160.2,6.2421]
[1721169938852,15.01,160.23,160.21,0.17]
[1721169939018,15.01,160.24,160.21,6.4116]
[1721169939441,6.2406,160.25,160.21,6.4116]
[1721169939636,15.01,160.24,160.21,0.17]
[1721169939821,15.01,160.24,160.2,6.5818]
[1721169940452,15.01,160.24,160.21,6.2417]
[1721169940750,6.2398,160.26,160.22,21.4213]
[1721169941041,15.01,160.25,160.23,0.17]
[1721169941659,15.01,160.24,160.23,0.17]
[1721169941831,15.01,160.24,160.22,0.17]
[1721169943358,6.2399,160.26,160.22,6.4112]
[1721169943657,15.01,160.25,160.22,6.4112]
[1721169948960,15.01,160.24,160.22,0.17]
[1721169950371,21.251,160.23,160.19,6.2422]
[1721169950673,15.01,160.21,160.18,6.2428]
[1721169951759,21.2518,160.21,160.17,6.2432]
[1721169951939,15.01,160.2,160.17,6.2432]
[1721169952458,6.2418,160.21,160.17,6.2432]
[1721169952459,15.01,160.19,160.17,6.2432]
[1721169953565,15.01,160.19,160.18,6.2429]
[1721169953745,15.01,160.2,160.18,6.2429]
[1721169954363,15.01,160.21,160.18,6.2429]
[1721169954869,15.01,160.2,160.18,6.2429]
[1721169957974,15.01,160.19,160.18,6.2429]
[1721169958869,6.2415,160.22,160.18,6.2429]
[1721169959042,15.01,160.2,160.18,6.2429]
[1721169959468,6.2418,160.21,160.17,6.2432]
[1721169959674,15.01,160.18,160.17,6.2432]
[1721169959842,6.2418,160.21,160.17,6.4132]
[1721169959843,15.01,160.19,160.17,6.4132]
[1721169960047,15.01,160.19,160.17,6.2432]
[1721169960271,15.01,160.19,160.16,0.17]
[1721169960677,15.01,160.19,160.17,6.2433]
[1721169962369,15.01,160.19,160.18,6.2429]
[1721169962554,15.01,160.2,160.19,6.2423]
[1721169962948,15.01,160.21,160.19,6.2423]
[1721169963153,15.01,160.21,160.19,6.4123]
[1721169963369,15.01,160.21,160.19,6.2423]
[1721169963974,15.9318,160.27,160.18,0.17]
[1721169964169,15.01,160.23,160.22,6.2411]
[1721169964357,15.01,160.24,160.22,6.2411]
[1721169965253,15.9318,160.27,160.2,1.41827857]
[1721169965455,15.9318,160.27,160.21,15.18]
[1721169965660,30.9418,160.27,160.22,1.41814419]
[1721169966150,30.9418,160.27,160.24,6.2405]
[1721169966353,6.4497,160.33,160.22,1.41814216]
[1721169966554,15.01,160.28,160.23,16.42806255]
[1721169966778,15.01,160.27,160.24,0.17]
[1721169967082,15.01,160.27,160.23,0.17]
[1721169967758,34.9856,160.31,160.28,6.2389]
[1721169968081,15.01,160.3,160.29,6.2386]
[1721169968288,15.01,160.3,160.28,6.239]
[1721169968469,15.01,160.3,160.26,0.17]
[1721169968983,15.01,160.3,160.26,1.41784665]
[1721169969278,16.919497,160.35,160.27,1.24784696]
[1721169969466,16.919497,160.35,160.28,0.17]
[1721169969467,15.01,160.32,160.28,0.17]
[1721169969667,15.01,160.3,160.28,0.17]
[1721169970074,15.01,160.29,160.2,6.3842]
[1721169970263,32.511197,160.35,160.27,6.2394]
[1721169970264,6.2376,160.32,160.27,6.2394]
[1721169970465,15.01,160.29,160.27,6.2394]
[1721169970662,15.01,160.29,160.26,6.2397]
[1721169971478,15.01,160.29,160.27,0.17]
[1721169971676,15.01,160.29,160.27,6.4094]
[1721169971869,15.01,160.29,160.27,0.17]
[1721169972074,15.01,160.29,160.27,6.4093]
[1721169972758,15.01,160.31,160.28,6.239]
[1721169973063,15.01,160.29,160.25,6.2401]
[1721169973263,15.01,160.27,160.24,0.17]
[1721169973577,15.01,160.27,160.2,6.3842]
[1721169973762,15.01,160.26,160.21,15.01]
[1721169974163,30.2063,160.28,160.23,15.01]
[1721169974368,15.01,160.27,160.22,15.01]
[1721169974681,30.2063,160.28,160.2,6.3842]
[1721169974886,30.2063,160.28,160.23,15.01]
[1721169975087,15.01,160.27,160.24,0.17]
[1721169975281,30.2063,160.28,160.25,6.2401]
[1721169975583,30.2063,160.28,160.24,6.2405]
[1721169975761,15.01,160.26,160.23,6.411]
[1721169976270,15.01,160.27,160.23,0.17]
[1721169976475,15.01,160.27,160.23,6.2407]
[1721169976877,15.01,160.26,160.23,6.2407]
[1721169977388,15.01,160.26,160.24,6.2405]
[1721169977590,15.01,160.26,160.23,6.241]
[1721169977987,15.01,160.27,160.22,0.34]
[1721169978179,15.01,160.27,160.25,6.2402]
[1721169978387,12.6594,160.31,160.27,6.2394]
[1721169978690,15.01,160.3,160.27,6.2394]
[1721169979294,16.0549,160.32,160.28,1.24782964]
[1721169979468,15.01,160.33,160.29,0.17]
[1721169979801,15.01,160.31,160.26,15.01]
[1721169979970,15.01,160.31,160.29,6.2385]
[1721169980174,6.2368,160.34,160.27,15.35]
[1721169980175,15.01,160.32,160.27,15.35]
[1721169980384,15.01,160.32,160.27,0.34]
[1721169981199,15.01,160.32,160.29,6.2386]
[1721169982376,15.01,160.32,160.3,6.2382]
[1721169982703,15.01,160.32,160.27,0.34]
[1721169982873,15.01,160.31,160.28,6.2387]
[1721169983273,15.01,160.31,160.29,6.2386]
[1721169984398,15.01,160.32,160.29,6.2386]
[1721169984973,15.01,160.31,160.29,6.2386]
[1721169988397,15.01,160.31,160.3,6.2383]
[1721169988578,30.6138,160.31,160.22,6.2335]
[1721169988778,15.01,160.29,160.24,15.01]
[1721169989002,15.01,160.29,160.23,15.01]
[1721169989218,15.01,160.3,160.28,6.2388]
[1721169989407,15.01,160.3,160.29,6.2386]
[1721169989705,15.01,160.3,160.28,6.2389]
[1721169989896,15.01,160.29,160.27,6.2393]
[1721169992210,15.01,160.29,160.28,6.239]
[1721169992807,15.01,160.3,160.28,6.239]
[1721169993988,15.01,160.29,160.27,6.2393]
[1721169995188,15.01,160.29,160.28,6.239]
[1721169995496,15.01,160.29,160.27,6.2393]
[1721169998011,21.2493,160.28,160.24,6.2405]
[1721169998197,15.01,160.26,160.24,6.2405]
[1721169998812,15.01,160.25,160.24,6.2405]
[1721169999131,15.01,160.25,160.23,6.2409]
[1721170000128,15.01,160.24,160.17,15.01]
[1721170000304,15.01,160.22,160.17,15.01]
[1721170000903,15.01,160.22,160.2,6.2419]
[1721170001302,15.01,160.21,160.2,6.2419]
[1721170002107,15.01,160.21,160.19,6.2425]
[1721170002312,15.01,160.2,160.16,6.2436]
[1721170002624,15.01,160.17,160.16,6.2436]
[1721170003504,15.01,160.17,160.15,6.244]
[1721170003703,15.01,160.16,160.14,6.2444]
[1721170003906,15.01,160.15,160.14,6.2444]
[1721170004208,15.01,160.16,160.15,6.244]
[1721170006031,15.5483,160.19,160.15,6.244]
[1721170006215,15.01,160.18,160.16,6.2435]
[1721170006826,15.01,160.18,160.13,15.01]
[1721170007010,15.01,160.18,160.14,0.34]
[1721170007210,15.01,160.18,160.16,6.2436]
[1721170007624,15.01,160.17,160.16,6.2436]
[1721170008836,15.01,160.17,160.09,6.52974957]
[1721170009131,15.01,160.17,160.15,6.2441]
[1721170009330,15.01,160.18,160.16,6.2436]
[1721170009646,15.01,160.18,160.15,6.2441]
[1721170010738,15.01,160.18,160.16,6.2436]
[1721170011443,15.01,160.18,160.15,6.2441]
[1721170013846,15.01,160.17,160.15,6.2441]
[1721170015144,15.01,160.16,160.14,6.2445]
[1721170017726,15.01,160.15,160.13,6.2448]
[1721170019936,15.01,160.15,160.14,6.2445]
[1721170020840,15.01,160.16,160.15,6.2439]
[1721170021422,21.7909,160.19,160.1,0.34]
[1721170021423,15.5483,160.19,160.13,15.01]
[1721170021643,15.01,160.18,160.14,0.34]
[1721170022232,15.01,160.18,160.13,0.34]
[1721170022422,15.01,160.18,160.13,1.58876612]
[1721170022627,15.01,160.18,160.13,0.34]
[1721170022827,15.01,160.18,160.15,6.244]
[1721170024541,15.5483,160.19,160.15,6.244]
[1721170024746,15.5483,160.19,160.16,6.2437]
[1721170024946,28.0452,160.24,160.2,6.2419]
[1721170025251,15.01,160.21,160.18,6.2428]
[1721170025751,15.01,160.22,160.19,6.2424]
[1721170025939,15.01,160.21,160.15,15.35]
[1721170026137,15.01,160.22,160.16,16.258631]
[1721170026332,15.01,160.22,160.17,15.18]
[1721170026544,21.2518,160.21,160.17,6.2433]
[1721170026761,15.01,160.21,160.18,6.2427]
[1721170027133,15.01,160.2,160.17,6.2433]
[1721170027456,15.01,160.21,160.18,6.2429]
[1721170027656,21.2519,160.21,160.17,6.2432]
[1721170027851,15.01,160.2,160.17,6.2432]
[1721170028432,15.01,160.2,160.15,0.17]
[1721170028732,15.01,160.2,160.15,0.34]
[1721170029458,6.242,160.21,160.15,0.34]
[1721170029631,15.01,160.19,160.16,6.2434]
[1721170029837,6.2423,160.2,160.09,16.6342]
[1721170029838,15.01,160.18,160.12,15.01]
[1721170030029,15.01,160.18,160.16,6.2435]
[1721170031531,15.01,160.18,160.15,6.244]